fUST/lending_fUST_20260616
["ID","MTS","AMOUNT","RATE_DAILY","PERIOD"]
[425175236,1781557844000,-500.0,0.00019178,2]
[425175237,1781557844000,-500.0,0.00019178,2]
[425175225,1781557844000,-581.17,0.00019178,2]
[425175231,1781557844000,-500.0,0.00019178,2]
[425175228,1781557844000,-1187.48,0.00019178,2]
[425175234,1781557844000,-500.0,0.00019178,2]
[425175233,1781557844000,-1245.22,0.00019178,2]
[425175229,1781557844000,-1370.7,0.00019178,2]
[425175227,1781557844000,-500.0,0.00019178,2]
[425175230,1781557844000,-500.0,0.00019178,2]
[425175232,1781557844000,-500.0,0.00019178,2]
[425175235,1781557844000,-430.4716,0.00019178,2]
[425175240,1781557844000,-500.0,0.00019178,2]
[425175239,1781557844000,-673.77,0.00019178,2]
[425175242,1781557844000,-500.0,0.00019178,2]
[425175249,1781557844000,-500.0,0.00019452,2]
[425175275,1781557844000,-500.0,0.00019452,2]
[425175336,1781557844000,-1086.312249,0.0001984,5]
[425175285,1781557844000,-1041.11,0.00019452,2]
[425175310,1781557844000,-500.0,0.00019726,2]
[425175312,1781557844000,-500.0,0.00019726,2]
[425175316,1781557844000,-500.0,0.00019726,2]
[425175315,1781557844000,-500.0,0.00019726,2]
[425175326,1781557844000,-673.77,0.00019726,2]
[425175327,1781557844000,-500.0,0.00019726,2]
[425175318,1781557844000,-1370.7,0.00019726,2]
[425175328,1781557844000,-1041.11,0.00019726,2]
[425175325,1781557844000,-1867.44,0.00019726,2]
[425175319,1781557844000,-500.0,0.00019726,2]
[425175323,1781557844000,-500.0,0.00019726,2]
[425175317,1781557844000,-1187.48,0.00019726,2]
[425175321,1781557844000,-1245.22,0.00019726,2]
[425175324,1781557844000,-500.0,0.00019726,2]
[425175320,1781557844000,-500.0,0.00019726,2]
[425175322,1781557844000,-500.0,0.00019726,2]
[425175329,1781557844000,-500.0,0.00019726,2]
[425175331,1781557844000,-160.0,0.00019755,2]
[425175330,1781557844000,-1071.25,0.00019726,2]
[425175332,1781557844000,-160.0,0.00019792,2]
[425175333,1781557844000,-160.0,0.00019792,2]
[425175341,1781557844000,-1000.0,0.0001992,5]
[425175337,1781557844000,-1000.0,0.0001986,5]
[425175338,1781557844000,-1000.0,0.0001988,5]
[425175335,1781557844000,-160.0,0.00019792,2]
[425175339,1781557844000,-160.0,0.00019888,7]
[425175340,1781557844000,-1000.0,0.000199,5]
[425175334,1781557844000,-160.0,0.00019792,2]
[425175278,1781557844000,-1245.22,0.00019452,2]
[425175311,1781557844000,-500.0,0.00019726,2]
[425175307,1781557844000,-738.73,0.00019726,2]
[425175304,1781557844000,-500.0,0.00019726,2]
[425175300,1781557844000,-265.45088722,0.00019726,2]
[425175286,1781557844000,-500.0,0.00019452,2]
[425175283,1781557844000,-673.77,0.00019452,2]
[425175288,1781557844000,-1000.0,0.000195,2]
[425175276,1781557844000,-436.26,0.00019452,2]
[425175281,1781557844000,-500.0,0.00019452,2]
[425175279,1781557844000,-500.0,0.00019452,2]
[425175287,1781557844000,-1071.25,0.00019452,2]
[425175277,1781557844000,-500.0,0.00019452,2]
[425175284,1781557844000,-500.0,0.00019452,2]
[425175290,1781557844000,-1000.0,0.00019726,2]
[425175301,1781557844000,-678.07,0.00019726,2]
[425175292,1781557844000,-482.52011531,0.00019726,2]
[425175308,1781557844000,-500.0,0.00019726,2]
[425175296,1781557844000,-500.0,0.00019726,2]
[425175294,1781557844000,-1099.89,0.00019726,2]
[425175295,1781557844000,-500.0,0.00019726,2]
[425175291,1781557844000,-1191.51,0.00019726,2]
[425175289,1781557844000,-200.0,0.0001951,2]
[425175293,1781557844000,-500.0,0.00019726,2]
[425175297,1781557844000,-500.0,0.00019726,2]
[425175298,1781557844000,-500.0,0.00019726,2]
[425175299,1781557844000,-562.62,0.00019726,2]
[425175303,1781557844000,-751.44,0.00019726,2]
[425175314,1781557844000,-500.0,0.00019726,2]
[425175302,1781557844000,-6779.04,0.00019726,2]
[425175305,1781557844000,-500.0,0.00019726,2]
[425175313,1781557844000,-567.44,0.00019726,2]
[425175306,1781557844000,-869.79,0.00019726,2]
[425175309,1781557844000,-678.15,0.00019726,2]
[425175282,1781557844000,-1867.44,0.00019452,2]
[425175280,1781557844000,-500.0,0.00019452,2]
[425175346,1781557845000,-3333.754702,0.00019963,2]
[425175343,1781557845000,-1000.0,0.0001996,5]
[425175347,1781557845000,-2524.495546,0.00019963,2]
[425175342,1781557845000,-1000.0,0.0001994,5]
[425175344,1781557845000,-8267.997036,0.00019963,2]
[425175350,1781557845000,-175207.9513331,0.0002,2]
[425175348,1781557845000,-2970.549263,0.00019963,2]
[425175349,1781557845000,-1000.0,0.0001998,5]
[425175345,1781557845000,-7265.930428,0.00019963,2]
[425175353,1781557850000,-557.03,0.00017534,2]
[425175354,1781557850000,-557.03,0.00017808,2]
[425175352,1781557850000,-557.03,0.0001726,2]
[425175355,1781557850000,-557.03,0.00018082,2]
[425175351,1781557850000,-557.03,0.00016986,2]
[425175357,1781557850000,-557.03,0.0001863,2]
[425175358,1781557850000,-557.03,0.00018904,2]
[425175359,1781557850000,-1075739.82509666,0.0002,2]
[425175356,1781557850000,-557.03,0.00018356,2]
[425175360,1781557850000,-455.82,0.00019178,2]
[425175383,1781558246000,10000.0,0.00024657,120]
[425175620,1781559033000,-628.23,0.00016611,2]
[425175618,1781559033000,-500.0,0.00016611,2]
[425175626,1781559033000,-500.0,0.00016611,2]
[425175616,1781559033000,-500.0,0.00016611,2]
[425175612,1781559033000,-500.0,0.00016611,2]
[425175609,1781559033000,-500.0,0.00016611,2]
[425175607,1781559033000,-235.4880464,0.0001661,2]
[425175614,1781559033000,-500.0,0.00016611,2]
[425175603,1781559033000,-500.0,0.0001661,2]
[425175622,1781559033000,-570.73,0.00016611,2]
[425175611,1781559033000,-500.0,0.00016611,2]
[425175624,1781559033000,-500.0,0.00016611,2]
[425175639,1781559033000,-3107.06,0.00016708,2]
[425175629,1781559033000,-304.97628618,0.00016708,2]
[425175637,1781559033000,-500.0,0.00016708,2]
[425175635,1781559033000,-500.0,0.00016708,2]
[425175633,1781559033000,-500.0,0.00016708,2]
[425175631,1781559033000,-2681.78,0.00016708,2]
[425175650,1781559033000,-125.04701078,0.00016708,2]
[425175605,1781559033000,-500.0,0.0001661,2]
[425175642,1781559033000,-500.0,0.00016708,2]
[425175641,1781559033000,-500.0,0.00016708,2]
[425175644,1781559033000,-500.0,0.00016708,2]
[425175646,1781559033000,-544.26,0.00016708,2]
[425175648,1781559033000,-500.0,0.00016708,2]
[425175652,1781559033000,-730.86298922,0.00016708,2]
[425175627,1781559033000,-12934.27702805,0.00016612,2]
[425175599,1781559033000,-500.0,0.0001661,2]
[425175590,1781559033000,-500.0,0.0001661,2]
[425175596,1781559033000,-500.0,0.0001661,2]
[425175547,1781559033000,-200.0,0.00014685,2]
[425175549,1781559033000,-76.36,0.00014685,7]
[425175551,1781559033000,-92.8712883,0.00014685,7]
[425175555,1781559033000,-169.2312883,0.00015419,7]
[425175554,1781559033000,-169.2312883,0.00014979,7]
[425175559,1781559033000,-445.0,0.00015842,2]
[425175561,1781559033000,-169.2312883,0.0001586,7]
[425175557,1781559033000,-186.0,0.00015842,2]
[425175563,1781559033000,-357.9773558,0.00016184,2]
[425175576,1781559033000,-500.0,0.00016438,2]
[425175565,1781559033000,-238.17219809,0.00016338,2]
[425175578,1781559033000,-500.0,0.00016438,2]
[425175598,1781559033000,-500.0,0.0001661,2]
[425175567,1781559033000,-160.0,0.00016437,2]
[425175569,1781559033000,-970.91547704,0.00016437,2]
[425175573,1781559033000,-500.0,0.00016438,2]
[425175574,1781559033000,-500.0,0.00016438,2]
[425175571,1781559033000,-500.0,0.00016437,2]
[425175580,1781559033000,-500.0,0.00016438,2]
[425175583,1781559033000,-500.0,0.00016438,2]
[425175584,1781559033000,-504.12,0.00016438,2]
[425175586,1781559033000,-169.23128833,0.00016447,7]
[425175588,1781559033000,-164.0,0.000165,2]
[425175601,1781559033000,-500.0,0.0001661,2]
[425175592,1781559033000,-500.0,0.0001661,2]
[425175594,1781559033000,-500.0,0.0001661,2]
[425175654,1781559033000,-360.21481064,0.00016708,2]
[425175656,1781559033000,-139.78518936,0.00016708,2]
[425175718,1781559033000,-500.0,0.00016982,2]
[425175661,1781559033000,-160.0,0.0001671,2]
[425175707,1781559033000,-570.73,0.00016885,2]
[425175705,1781559033000,-500.0,0.00016885,2]
[425175703,1781559033000,-552.00727504,0.00016885,2]
[425175706,1781559033000,-628.23,0.00016885,2]
[425175709,1781559033000,-500.0,0.00016885,2]
[425175713,1781559033000,-2681.78,0.00016982,2]
[425175711,1781559033000,-180.05041412,0.00016934,2]
[425175712,1781559033000,-203.539091,0.00016946,2]
[425175714,1781559033000,-500.0,0.00016982,2]
[425175710,1781559033000,-162.0,0.000169,2]
[425175717,1781559033000,-3107.06,0.00016982,2]
[425175715,1781559033000,-500.0,0.00016982,2]
[425175708,1781559033000,-500.0,0.00016885,2]
[425175716,1781559033000,-500.0,0.00016982,2]
[425175723,1781559033000,-500.0,0.00016982,2]
[425175719,1781559033000,-500.0,0.00016982,2]
[425175720,1781559033000,-544.26,0.00016982,2]
[425175722,1781559033000,-855.91,0.00016982,2]
[425175727,1781559033000,-500.0,0.00016986,2]
[425175726,1781559033000,-500.0,0.00016985,2]
[425175728,1781559033000,-500.0,0.00016986,2]
[425175725,1781559033000,-500.0,0.00016984,2]
[425175729,1781559033000,-500.0,0.00016986,2]
[425175730,1781559033000,-500.0,0.00016986,2]
[425175731,1781559033000,-504.12,0.00016986,2]
[425175660,1781559033000,-500.0,0.0001671,2]
[425175721,1781559033000,-454.30321067,0.00016982,2]
[425175704,1781559033000,-500.0,0.00016885,2]
[425175724,1781559033000,-500.0,0.00016984,2]
[425175698,1781559033000,-217.82439967,0.00016884,2]
[425175673,1781559033000,-227.03349007,0.00016711,2]
[425175663,1781559033000,-160.0,0.0001671,2]
[425175665,1781559033000,-160.0,0.0001671,2]
[425175671,1781559033000,-500.0,0.00016711,2]
[425175669,1781559033000,-160.0,0.0001671,2]
[425175667,1781559033000,-769.69839092,0.0001671,2]
[425175676,1781559033000,-577.18865682,0.00016712,2]
[425175658,1781559033000,-500.0,0.0001671,2]
[425175675,1781559033000,-500.0,0.00016712,2]
[425175678,1781559033000,-500.0,0.00016712,2]
[425175702,1781559033000,-500.0,0.00016885,2]
[425175682,1781559033000,-500.0,0.00016712,2]
[425175685,1781559033000,-504.12,0.00016712,2]
[425175683,1781559033000,-467.6132753,0.00016712,2]
[425175693,1781559033000,-500.0,0.00016884,2]
[425175700,1781559033000,-500.0,0.00016885,2]
[425175701,1781559033000,-500.0,0.00016885,2]
[425175697,1781559033000,-500.0,0.00016884,2]
[425175680,1781559033000,-500.0,0.00016712,2]
[425175696,1781559033000,-500.0,0.00016884,2]
[425175699,1781559033000,-282.17560033,0.00016884,2]
[425175692,1781559033000,-500.0,0.00016884,2]
[425175690,1781559033000,-500.0,0.00016884,2]
[425175694,1781559033000,-500.0,0.00016884,2]
[425175687,1781559033000,-500.0,0.00016712,2]
[425175689,1781559033000,-500.0,0.00016884,2]
[425175695,1781559033000,-500.0,0.00016884,2]
[425175732,1781559034000,-500.0,0.00017158,2]
[425175733,1781559034000,-434.55652129,0.00017158,2]
[425175736,1781559034000,-500.0,0.00017158,2]
[425175737,1781559034000,-500.0,0.00017158,2]
[425175734,1781559034000,-500.0,0.00017158,2]
[425175735,1781559034000,-500.0,0.00017158,2]
[425175739,1781559034000,-500.0,0.00017158,2]
[425175742,1781559034000,-500.0,0.00017159,2]
[425175743,1781559034000,-171.37499798,0.00017159,2]
[425175741,1781559034000,-325.94722439,0.00017158,2]
[425175740,1781559034000,-174.05277561,0.00017158,2]
[425175738,1781559034000,-500.0,0.00017158,2]
[425175785,1781559038000,-500.0,0.00017256,2]
[425175780,1781559038000,-3107.06,0.00017256,2]
[425175783,1781559038000,-544.26,0.00017256,2]
[425175786,1781559038000,-500.0,0.00017258,2]
[425175782,1781559038000,-322.68244661,0.00017256,2]
[425175791,1781559038000,-500.0,0.0001726,2]
[425175787,1781559038000,-500.0,0.00017258,2]
[425175789,1781559038000,-500.0,0.0001726,2]
[425175790,1781559038000,-500.0,0.0001726,2]
[425175792,1781559038000,-504.12,0.0001726,2]
[425175794,1781559038000,-500.0,0.00017432,2]
[425175788,1781559038000,-500.0,0.00017259,2]
[425175784,1781559038000,-855.91,0.00017256,2]
[425175777,1781559038000,-500.0,0.00017256,2]
[425175779,1781559038000,-500.0,0.00017256,2]
[425175776,1781559038000,-2681.78,0.00017256,2]
[425175774,1781559038000,-500.0,0.00017159,2]
[425175778,1781559038000,-500.0,0.00017256,2]
[425175775,1781559038000,-500.0,0.00017159,2]
[425175773,1781559038000,-570.73,0.00017159,2]
[425175770,1781559038000,-500.0,0.00017159,2]
[425175772,1781559038000,-628.23,0.00017159,2]
[425175769,1781559038000,-500.0,0.00017159,2]
[425175768,1781559038000,-328.62500202,0.00017159,2]
[425175771,1781559038000,-500.0,0.00017159,2]
[425175767,1781559038000,-555.04047076,0.00016708,2]
[425175793,1781559038000,-600.0,0.00017325,2]
[425175781,1781559038000,-500.0,0.00017256,2]
[425175797,1781559038000,-290.95488179,0.00017432,2]
[425175798,1781559038000,-467.21184666,0.00017432,2]
[425175800,1781559038000,-500.0,0.00017432,2]
[425175795,1781559038000,-500.0,0.00017432,2]
[425175825,1781559038000,-500.0,0.00017534,2]
[425175820,1781559038000,-500.0,0.00017532,2]
[425175824,1781559038000,-500.0,0.00017534,2]
[425175822,1781559038000,-500.0,0.00017533,2]
[425175823,1781559038000,-500.0,0.00017534,2]
[425175818,1781559038000,-855.91,0.0001753,2]
[425175821,1781559038000,-500.0,0.00017532,2]
[425175819,1781559038000,-500.0,0.0001753,2]
[425175814,1781559038000,-500.0,0.0001753,2]
[425175816,1781559038000,-500.0,0.0001753,2]
[425175815,1781559038000,-3107.06,0.0001753,2]
[425175812,1781559038000,-500.0,0.0001753,2]
[425175813,1781559038000,-500.0,0.0001753,2]
[425175817,1781559038000,-544.26,0.0001753,2]
[425175809,1781559038000,-500.0,0.00017433,2]
[425175799,1781559038000,-500.0,0.00017432,2]
[425175810,1781559038000,-500.0,0.00017433,2]
[425175802,1781559038000,-500.0,0.00017433,2]
[425175801,1781559038000,-500.0,0.00017432,2]
[425175804,1781559038000,-500.0,0.00017433,2]
[425175803,1781559038000,-500.0,0.00017433,2]
[425175796,1781559038000,-500.0,0.00017432,2]
[425175807,1781559038000,-628.23,0.00017433,2]
[425175811,1781559038000,-2681.78,0.0001753,2]
[425175808,1781559038000,-570.73,0.00017433,2]
[425175805,1781559038000,-500.0,0.00017433,2]
[425175806,1781559038000,-500.0,0.00017433,2]
[425175869,1781559039000,-500.0,0.00017981,2]
[425175866,1781559039000,-500.0,0.00017981,2]
[425175865,1781559039000,-500.0,0.0001798,2]
[425175863,1781559039000,-500.0,0.0001798,2]
[425175861,1781559039000,-500.0,0.0001798,2]
[425175862,1781559039000,-500.0,0.0001798,2]
[425175860,1781559039000,-500.0,0.0001798,2]
[425175857,1781559039000,-500.0,0.00017808,2]
[425175856,1781559039000,-500.0,0.00017808,2]
[425175867,1781559039000,-500.0,0.00017981,2]
[425175864,1781559039000,-500.0,0.0001798,2]
[425175870,1781559039000,-500.0,0.00017981,2]
[425175883,1781559039000,-500.0,0.0001808,2]
[425175871,1781559039000,-628.23,0.00017981,2]
[425175872,1781559039000,-570.73,0.00017981,2]
[425175874,1781559039000,-500.0,0.00017981,2]
[425175876,1781559039000,-500.0,0.00018078,2]
[425175875,1781559039000,-2681.78,0.00018078,2]
[425175877,1781559039000,-500.0,0.00018078,2]
[425175873,1781559039000,-500.0,0.00017981,2]
[425175878,1781559039000,-500.0,0.00018078,2]
[425175880,1781559039000,-500.0,0.00018078,2]
[425175879,1781559039000,-3107.06,0.00018078,2]
[425175882,1781559039000,-855.91,0.00018078,2]
[425175881,1781559039000,-544.26,0.00018078,2]
[425175859,1781559039000,-796.0,0.000179,2]
[425175884,1781559039000,-500.0,0.0001808,2]
[425175868,1781559039000,-500.0,0.00017981,2]
[425175854,1781559039000,-500.0,0.00017807,2]
[425175846,1781559039000,-500.0,0.00017804,2]
[425175858,1781559039000,-504.12,0.00017808,2]
[425175885,1781559039000,-500.0,0.00018081,2]
[425175826,1781559039000,-504.12,0.00017534,2]
[425175828,1781559039000,-500.0,0.00017706,2]
[425175827,1781559039000,-500.0,0.00017706,2]
[425175829,1781559039000,-500.0,0.00017706,2]
[425175831,1781559039000,-500.0,0.00017706,2]
[425175834,1781559039000,-500.0,0.00017707,2]
[425175832,1781559039000,-500.0,0.00017706,2]
[425175830,1781559039000,-500.0,0.00017706,2]
[425175833,1781559039000,-500.0,0.00017707,2]
[425175835,1781559039000,-500.0,0.00017707,2]
[425175836,1781559039000,-500.0,0.00017707,2]
[425175837,1781559039000,-500.0,0.00017707,2]
[425175855,1781559039000,-500.0,0.00017808,2]
[425175840,1781559039000,-500.0,0.00017707,2]
[425175839,1781559039000,-570.73,0.00017707,2]
[425175841,1781559039000,-500.0,0.00017707,2]
[425175842,1781559039000,-200.0,0.00017785,2]
[425175843,1781559039000,-2681.78,0.00017804,2]
[425175845,1781559039000,-500.0,0.00017804,2]
[425175844,1781559039000,-500.0,0.00017804,2]
[425175849,1781559039000,-544.26,0.00017804,2]
[425175847,1781559039000,-3107.06,0.00017804,2]
[425175848,1781559039000,-500.0,0.00017804,2]
[425175852,1781559039000,-500.0,0.00017806,2]
[425175850,1781559039000,-855.91,0.00017804,2]
[425175851,1781559039000,-454.05726656,0.00017804,2]
[425175853,1781559039000,-500.0,0.00017806,2]
[425175838,1781559039000,-628.23,0.00017707,2]
[425175888,1781559039000,-500.0,0.00018082,2]
[425175924,1781559039000,-288.0,0.00018521,3]
[425175890,1781559039000,-198.9504795,0.00018254,2]
[425175920,1781559039000,-160.0,0.00018408,3]
[425175922,1781559039000,-603.753718,0.00018487,2]
[425175923,1781559039000,-1047.507437,0.00018487,2]
[425175926,1781559039000,-500.0,0.00018528,2]
[425175925,1781559039000,-500.0,0.00018528,2]
[425175927,1781559039000,-500.0,0.00018528,2]
[425175929,1781559039000,-500.0,0.00018528,2]
[425175928,1781559039000,-500.0,0.00018528,2]
[425175930,1781559039000,-500.0,0.00018529,2]
[425175931,1781559039000,-248.7363268,0.00018529,2]
[425175933,1781559039000,-500.0,0.00018529,2]
[425175934,1781559039000,-500.0,0.00018529,2]
[425175932,1781559039000,-500.0,0.00018529,2]
[425175935,1781559039000,-628.23,0.00018529,2]
[425175937,1781559039000,-500.0,0.00018529,2]
[425175939,1781559039000,-1000.0,0.00018555,5]
[425175936,1781559039000,-570.73,0.00018529,2]
[425175938,1781559039000,-500.0,0.00018529,2]
[425175940,1781559039000,-161.0,0.000186,5]
[425175941,1781559039000,-2681.78,0.00018626,2]
[425175945,1781559039000,-3107.06,0.00018626,2]
[425175946,1781559039000,-544.26,0.00018626,2]
[425175944,1781559039000,-500.0,0.00018626,2]
[425175947,1781559039000,-855.91,0.00018626,2]
[425175942,1781559039000,-500.0,0.00018626,2]
[425175943,1781559039000,-500.0,0.00018626,2]
[425175887,1781559039000,-500.0,0.00018082,2]
[425175921,1781559039000,-160.0,0.00018487,2]
[425175918,1781559039000,-500.0,0.00018356,2]
[425175948,1781559039000,-500.0,0.00018628,2]
[425175916,1781559039000,-500.0,0.00018356,2]
[425175919,1781559039000,-504.12,0.00018356,2]
[425175886,1781559039000,-500.0,0.00018082,2]
[425175891,1781559039000,-500.0,0.00018254,2]
[425175892,1781559039000,-500.0,0.00018254,2]
[425175893,1781559039000,-500.0,0.00018254,2]
[425175897,1781559039000,-500.0,0.00018255,2]
[425175895,1781559039000,-500.0,0.00018254,2]
[425175896,1781559039000,-500.0,0.00018255,2]
[425175894,1781559039000,-500.0,0.00018254,2]
[425175898,1781559039000,-500.0,0.00018255,2]
[425175901,1781559039000,-628.23,0.00018255,2]
[425175900,1781559039000,-500.0,0.00018255,2]
[425175902,1781559039000,-570.73,0.00018255,2]
[425175899,1781559039000,-500.0,0.00018255,2]
[425175889,1781559039000,-504.12,0.00018082,2]
[425175904,1781559039000,-500.0,0.00018255,2]
[425175903,1781559039000,-500.0,0.00018255,2]
[425175915,1781559039000,-640.58071433,0.00018355,2]
[425175913,1781559039000,-500.0,0.00018354,2]
[425175914,1781559039000,-441.51743429,0.00018354,2]
[425175911,1781559039000,-544.26,0.00018352,2]
[425175912,1781559039000,-855.91,0.00018352,2]
[425175917,1781559039000,-500.0,0.00018356,2]
[425175909,1781559039000,-3107.06,0.00018352,2]
[425175907,1781559039000,-500.0,0.00018352,2]
[425175908,1781559039000,-500.0,0.00018352,2]
[425175906,1781559039000,-500.0,0.00018352,2]
[425175905,1781559039000,-2681.78,0.00018352,2]
[425175910,1781559039000,-480.11235279,0.00018352,2]
[425175992,1781559040000,-500.0,0.00019076,2]
[425175993,1781559040000,-500.0,0.00019076,2]
[425175983,1781559040000,-160.0,0.00019012,2]
[425175985,1781559040000,-5035.966259,0.00019012,2]
[425175984,1781559040000,-2597.983129,0.00019012,2]
[425175987,1781559040000,-1120.55353,0.00019012,2]
[425175982,1781559040000,-8247.807118,0.00019012,2]
[425175977,1781559040000,-500.0,0.00018904,2]
[425175979,1781559040000,-504.62733901,0.00019,2]
[425175991,1781559040000,-500.0,0.00019076,2]
[425175986,1781559040000,-160.0,0.00019012,2]
[425175980,1781559040000,-160.0,0.00019012,2]
[425175996,1781559040000,-500.0,0.00019077,2]
[425175994,1781559040000,-500.0,0.00019077,2]
[425175988,1781559040000,-2081.107061,0.00019012,2]
[425175990,1781559040000,-500.0,0.00019076,2]
[425175995,1781559040000,-500.0,0.00019077,2]
[425175997,1781559040000,-384.24059063,0.00019077,2]
[425175998,1781559040000,-628.23,0.00019077,2]
[425175999,1781559040000,-570.73,0.00019077,2]
[425176000,1781559040000,-500.0,0.00019077,2]
[425176003,1781559040000,-2681.78,0.00019174,2]
[425176002,1781559040000,-163.6660161,0.000191,5]
[425176001,1781559040000,-500.0,0.00019077,2]
[425176004,1781559040000,-500.0,0.00019174,2]
[425175981,1781559040000,-4203.903559,0.00019012,2]
[425175989,1781559040000,-720.0,0.00019057,2]
[425175978,1781559040000,-504.12,0.00018904,2]
[425175963,1781559040000,-628.23,0.00018803,2]
[425175975,1781559040000,-855.91,0.000189,2]
[425175951,1781559040000,-424.14809245,0.0001863,2]
[425175952,1781559040000,-504.12,0.0001863,2]
[425175950,1781559040000,-500.0,0.0001863,2]
[425175949,1781559040000,-301.64685602,0.0001863,2]
[425175953,1781559040000,-203.539091,0.00018729,2]
[425175954,1781559040000,-500.0,0.00018802,2]
[425175956,1781559040000,-500.0,0.00018802,2]
[425175955,1781559040000,-164.31261717,0.00018802,2]
[425175957,1781559040000,-500.0,0.00018802,2]
[425175958,1781559040000,-500.0,0.00018802,2]
[425175961,1781559040000,-500.0,0.00018803,2]
[425175960,1781559040000,-500.0,0.00018803,2]
[425175976,1781559040000,-500.0,0.00018902,2]
[425175959,1781559040000,-500.0,0.00018803,2]
[425175965,1781559040000,-500.0,0.00018803,2]
[425175964,1781559040000,-570.73,0.00018803,2]
[425175967,1781559040000,-186.0,0.00018842,2]
[425175968,1781559040000,-445.0,0.00018842,2]
[425175966,1781559040000,-500.0,0.00018803,2]
[425175969,1781559040000,-2681.78,0.000189,2]
[425175974,1781559040000,-544.26,0.000189,2]
[425176006,1781559040000,-3107.06,0.00019174,2]
[425175973,1781559040000,-3107.06,0.000189,2]
[425175971,1781559040000,-500.0,0.000189,2]
[425175970,1781559040000,-500.0,0.000189,2]
[425175972,1781559040000,-330.63056028,0.000189,2]
[425175962,1781559040000,-500.0,0.00018803,2]
[425176007,1781559040000,-544.26,0.00019174,2]
[425176043,1781559040000,-500.0,0.00019624,2]
[425176008,1781559040000,-855.91,0.00019174,2]
[425176039,1781559040000,-500.0,0.00019452,2]
[425176038,1781559040000,-500.0,0.0001945,2]
[425176041,1781559040000,-184.0,0.00019616,3]
[425176044,1781559040000,-500.0,0.00019625,2]
[425176042,1781559040000,-500.0,0.00019624,2]
[425176045,1781559040000,-500.0,0.00019625,2]
[425176046,1781559040000,-500.0,0.00019625,2]
[425176051,1781559040000,-2681.78,0.00019722,2]
[425176053,1781559040000,-500.0,0.00019722,2]
[425176049,1781559040000,-500.0,0.00019625,2]
[425176048,1781559040000,-570.73,0.00019625,2]
[425176047,1781559040000,-628.23,0.00019625,2]
[425176040,1781559040000,-504.12,0.00019452,2]
[425176050,1781559040000,-500.0,0.00019625,2]
[425176054,1781559040000,-3107.06,0.00019722,2]
[425176058,1781559040000,-214.54393763,0.00019726,2]
[425176055,1781559040000,-544.26,0.00019722,2]
[425176057,1781559040000,-500.0,0.00019724,2]
[425176059,1781559040000,-245.19307158,0.00019726,2]
[425176063,1781559040000,-162.0,0.000198,7]
[425176065,1781559040000,-500.0,0.00019898,2]
[425176064,1781559040000,-500.0,0.00019898,2]
[425176062,1781559040000,-504.12,0.00019726,2]
[425176060,1781559040000,-383.11417435,0.00019726,2]
[425176061,1781559040000,-500.0,0.00019726,2]
[425176005,1781559040000,-500.0,0.00019174,2]